bitfinex/quotes_ETHUSD_20250414
["timestamp","ask_amount","ask_price","bid_price","bid_amount"]
[1744645374600,3.79547162,1632.3,1632.2,6.1267]
[1744645374799,3.79547162,1632.3,1631.9,1.5542]
[1744645374974,3.79547162,1632.3,1632.2,6.1267]
[1744645375584,0.05,1632.4,1632.3,6.12632]
[1744645376400,0.05,1632.4,1632.2,0.44855337]
[1744645376571,0.05,1632.4,1632.1,6.12691]
[1744645376901,0.05,1632.4,1632.2,6.12653]
[1744645377081,0.05,1632.4,1632.3,6.12632]
[1744645377282,0.05,1632.4,1632.2,6.12653]
[1744645377480,0.05,1632.4,1632.3,6.12632]
[1744645377686,0.05,1632.4,1632.1,6.12682]
[1744645377687,0.59332,1632.4,1632.1,6.12682]
[1744645377868,6.71932,1632.4,1632.0,6.1274]
[1744645378075,12.84553,1632.4,1632.0,6.1274]
[1744645378280,0.59332,1632.4,1632.1,6.12695]
[1744645378668,6.71928,1632.4,1632.0,12.25466]
[1744645378893,6.12649,1632.3,1631.9,6.12757]
[1744645379065,6.12676,1632.2,1631.9,6.12757]
[1744645379265,1.768645,1632.2,1631.7,47.801]
[1744645379499,6.12816,1631.9,1631.5,12.25843]
[1744645379672,0.54332,1632.2,1631.6,6.12895]
[1744645379878,0.54332,1631.9,1631.8,6.12799]
[1744645380099,0.54332,1631.9,1631.7,6.1284]
[1744645380398,0.54332,1631.9,1631.8,6.1282]
[1744645380603,0.54332,1631.9,1631.5,0.46725466]
[1744645380901,7.66285,1631.7,1631.3,6.12991]
[1744645381102,6.67126,1631.9,1631.5,6.12913]
[1744645381275,0.54332,1631.7,1631.6,6.1900592]
[1744645381599,0.54332,1631.7,1631.6,9.12877]
[1744645381800,0.54332,1631.7,1631.5,6.12913]
[1744645382009,0.54332,1631.7,1631.6,6.12895]
[1744645382674,0.54332,1631.7,1631.5,6.12913]
[1744645382675,0.54332,1631.7,1631.4,6.12968]
[1744645382869,0.54332,1631.7,1631.6,6.12895]
[1744645383312,0.54332,1631.7,1631.6,7.354775]
[1744645383808,5.75480753,1631.7,1631.6,15.75511159]
[1744645384009,0.05,1632.4,1632.3,6.12632]
[1744645384310,6.22,1632.4,1632.1,6.12706]
[1744645384506,6.22,1632.4,1632.3,6.12632]
[1744645384912,6.22,1632.4,1632.3,12.05434259]
[1744645385112,6.22,1632.4,1632.3,6.59274806]
[1744645385512,6.22,1632.4,1632.3,9.59274806]
[1744645385813,5.6e-06,1632.6,1632.5,9.12557]
[1744645386612,5.6e-06,1632.6,1632.5,10.72827]
[1744645388181,0.05,1633.4,1633.3,6.12257]
[1744645388381,0.05,1633.4,1633.2,12.2456]
[1744645388576,0.05,1633.4,1633.3,6.38862967]
[1744645388779,0.05,1633.4,1633.3,6.84917974]
[1744645389113,0.05,1633.4,1633.3,0.66539472]
[1744645389417,0.05,1633.4,1633.3,6.78796472]
[1744645389777,0.05,1633.4,1633.3,6.58312007]
[1744645390102,0.05,1633.4,1633.3,6.78797782]
[1744645390319,0.3967256,1634.3,1633.3,7.41802953]
[1744645390477,6.5667256,1634.3,1633.4,9.32677775]
[1744645390675,6.5667256,1634.3,1633.5,6.12182]
[1744645390877,6.12035,1633.9,1633.5,6.1217]
[1744645391095,6.12035,1633.9,1633.4,6.32698775]
[1744645391096,6.11995,1634.0,1633.4,3.20485775]
[1744645391419,6.12044,1633.9,1633.4,3.0]
[1744645391582,6.12072,1633.8,1633.4,3.0]
[1744645391782,3.03442197,1634.2,1633.4,3.0]
[1744645392079,3.03442197,1634.2,1633.1,7.7452]
[1744645392080,6.12158,1633.6,1633.1,7.7452]
[1744645392280,6.12233,1633.4,1633.0,47.738]
[1744645392521,6.12233,1633.4,1633.0,48.1992389]
[1744645392722,6.12271,1633.3,1633.0,48.1992389]
[1744645393030,6.12281,1633.3,1633.0,47.738]
[1744645393380,6.12314,1633.2,1633.0,47.738]
[1744645393725,12.24629,1633.2,1633.0,47.738]
[1744645393932,6.12311,1633.2,1633.0,47.738]
[1744645394130,6.12403,1633.0,1632.1,5.40033659]
[1744645394282,1.5474,1633.1,1632.5,6.12553]
[1744645394480,6.12498,1632.7,1632.2,11.52674659]
[1744645394681,7.67078,1633.1,1632.0,49.2469]
[1744645394887,6.12476,1632.8,1632.3,6.12617]
[1744645395183,6.12462,1632.8,1632.3,6.12615]
[1744645395386,12.29466,1632.8,1632.3,6.12631]
[1744645395585,6.12532,1632.6,1632.1,6.12705]
[1744645395828,6.17,1632.8,1632.0,48.19809085]
[1744645395997,12.2945,1632.8,1632.0,54.32552085]
[1744645396205,6.12519,1632.6,1632.0,48.19809085]
[1744645396524,6.12558,1632.5,1632.1,6.12694]
[1744645396727,6.12482,1632.7,1632.2,6.31940498]
[1744645396884,6.12521,1632.6,1632.2,0.19290498]
[1744645397091,6.17,1632.8,1632.2,6.22522707]
[1744645397290,6.17,1632.8,1632.3,6.12616]
[1744645397621,6.12585,1632.5,1632.4,0.19290498]
[1744645397826,7.64705,1632.5,1632.4,0.19290498]
[1744645398004,18.28705,1632.5,1632.4,0.19290498]
[1744645398333,20.728278,1632.5,1632.4,4.98e-06]
[1744645399037,6.12738,1632.1,1631.6,6.19008688]
[1744645399235,6.12672,1632.2,1631.7,12.25696]
[1744645399523,6.12739,1632.1,1631.6,6.12877]
[1744645399730,6.12739,1632.1,1631.6,6.19004961]
[1744645399927,10.088128,1632.5,1631.6,2.03493099]
[1744645400228,6.12677,1632.2,1631.7,6.12831]
[1744645400389,0.31819387,1632.6,1631.8,5.4616082]
[1744645400596,12.25145,1632.5,1632.0,6.12716]
[1744645400975,6.12484,1632.7,1632.2,6.12653]
[1744645401260,6.12551,1632.6,1632.1,1.5079]
[1744645401470,6.12562,1632.5,1632.1,1.5079]
[1744645401646,6.12659,1632.3,1631.7,1.5079]
[1744645401825,6.12659,1632.3,1631.8,6.12802]
[1744645402029,6.12659,1632.3,1631.8,12.25605]
[1744645402343,6.17,1632.8,1631.9,5.40033659]
[1744645402690,0.2,1633.8,1632.6,6.12505]
[1744645402691,1.5905,1633.7,1632.6,6.12505]
[1744645402961,6.12345,1633.1,1632.6,6.12509]
[1744645403169,6.12345,1633.1,1632.6,12.25014]
[1744645403331,6.12301,1633.2,1632.7,6.1247]
[1744645403760,6.12262,1633.3,1632.8,6.18554714]
[1744645403964,6.17,1633.2,1632.8,6.18550714]
[1744645404259,6.17,1633.2,1632.9,6.12406]
[1744645404425,6.17,1633.2,1633.0,0.06123029]
[1744645404637,12.29325,1633.2,1632.7,6.58127532]
[1744645404834,6.17,1633.2,1632.9,6.12403]
[1744645405340,6.17,1633.2,1632.6,3.0]
[1744645405562,6.17,1633.2,1632.8,6.12414]
[1744645405782,6.17,1633.2,1632.8,12.2484]
[1744645405967,6.17,1633.2,1632.8,6.12414]
[1744645406170,6.12347,1633.1,1632.7,6.59233474]
[1744645406369,6.17,1633.2,1632.8,6.12441]
[1744645406698,6.17,1633.2,1632.9,0.06123377]
[1744645406861,6.17,1633.2,1632.9,6.12393]
[1744645407176,6.17,1633.2,1632.9,6.1239]
[1744645407474,6.17,1633.2,1632.7,0.46754474]
[1744645407644,6.17,1633.2,1632.9,12.24768]
[1744645407846,6.17,1633.2,1632.9,12.24771]
[1744645408057,6.17,1633.2,1632.7,6.59221474]
[1744645408256,6.12387,1633.0,1632.5,6.12532]
[1744645408454,6.12338,1633.1,1632.6,6.12506]
[1744645408663,6.12386,1633.0,1632.6,6.12507]
[1744645408867,12.24692,1633.1,1632.6,6.12504]
[1744645409035,10.09,1633.3,1632.5,0.612532]
[1744645409036,6.17,1633.0,1632.5,0.612532]
[1744645409237,16.26,1632.9,1631.6,1.6192]
[1744645409432,6.12762,1632.0,1631.7,0.31552583]
[1744645409677,12.29758,1632.0,1631.5,6.12907]
[1744645409863,6.17,1632.0,1631.7,6.12845]
[1744645410248,6.17,1632.0,1631.7,6.12849]
[1744645410441,6.17,1632.0,1631.8,0.19430623]
[1744645410986,6.17,1632.2,1631.9,6.12766]
[1744645411287,6.17,1632.2,1632.1,6.12707]
[1744645411491,6.17,1632.3,1632.1,6.12707]
[1744645411785,6.17,1632.3,1632.0,15.25466]
[1744645411986,6.17,1632.3,1632.0,3.0]
[1744645412200,6.17,1632.3,1632.0,9.59107]
[1744645412410,13.87705,1632.7,1632.2,6.1267]
[1744645412617,7.7521,1632.7,1632.0,9.59114]
[1744645412776,12.29492,1632.7,1632.0,3.46374]
[1744645412983,6.12548,1632.6,1632.1,6.473324]
[1744645413173,6.12584,1632.5,1632.0,15.25454]
[1744645413514,7.71922,1632.3,1631.7,0.44912625]
[1744645413664,6.12733,1632.1,1631.7,0.44912625]
[1744645413869,6.17,1632.2,1631.7,6.12835]
[1744645413870,12.29673,1632.2,1631.7,6.12835]
[1744645414075,12.29673,1632.2,1631.6,1.5964]
[1744645414076,6.17,1632.1,1631.6,1.5964]
[1744645414407,6.17,1632.1,1631.4,5.40033659]
[1744645414408,12.29692,1632.2,1631.5,0.45123719]
[1744645414711,6.17,1632.2,1631.7,11.52890659]
[1744645414909,6.17,1632.2,1631.9,12.25529]
[1744645415091,6.17,1632.2,1631.5,4.19812438]
[1744645415092,6.17,1632.2,1631.6,6.12872]
[1744645415302,6.17,1632.1,1631.5,16.19272519]
[1744645415473,6.17,1632.1,1631.3,49.3151]
[1744645415474,6.12782,1631.9,1631.3,47.74]
[1744645415673,6.12938,1631.5,1630.7,1.6183]
[1744645415877,6.17,1631.4,1631.1,6.1808]
[1744645416120,6.17,1631.3,1631.2,6.19174426]
[1744645416269,6.17,1631.8,1631.7,6.12857]
[1744645416602,10.09,1632.0,1631.8,6.12803]
[1744645416603,6.17,1632.0,1631.8,6.12803]
[1744645416797,6.17,1632.0,1631.6,9.12867]
[1744645417098,6.17,1632.0,1631.7,6.12846]
[1744645417299,6.17,1632.0,1631.6,9.58802796]
[1744645417479,6.17,1632.0,1631.5,59.28359659]
[1744645417480,12.29761,1632.0,1631.5,59.28359659]
[1744645417653,6.17,1632.0,1631.5,53.15433659]
[1744645417852,6.17,1632.0,1631.6,6.12868]
[1744645418087,12.29773,1632.0,1631.5,65.41276659]
[1744645418276,6.17,1632.0,1631.7,6.12832]
[1744645418595,6.17,1632.0,1631.8,6.12805]
[1744645418766,6.17,1632.0,1631.5,53.88319]
[1744645418962,6.12856,1631.8,1631.5,47.754]
[1744645419163,12.2975,1632.0,1631.5,53.88318]
[1744645419385,12.29753,1632.0,1631.5,53.88331]
[1744645419603,18.42524,1632.0,1631.6,6.12891]
[1744645419799,18.42524,1632.0,1631.6,6.12889]
[1744645419800,12.29749,1632.0,1631.6,6.12889]
[1744645420098,12.29748,1632.0,1631.5,53.88319]
[1744645420306,6.17,1632.0,1631.5,47.754]
[1744645420476,10.09,1632.0,1631.5,41.584]
[1744645420671,6.12895,1631.6,1631.5,41.584]
[1744645420877,12.29895,1631.6,1631.5,41.584]
[1744645421086,6.17,1631.6,1631.5,41.584]
[1744645421285,12.29895,1631.6,1631.5,41.584]
[1744645421484,6.17,1631.6,1631.5,41.584]
[1744645421689,12.29895,1631.6,1631.5,41.584]
[1744645421892,6.17,1631.6,1631.5,41.584]
[1744645422095,12.29895,1631.6,1631.5,41.584]
[1744645422366,6.13045,1631.2,1631.1,0.05]
[1744645422597,6.17,1631.2,1631.1,0.05]
[1744645422903,6.12913,1631.6,1631.1,0.05]
[1744645423100,6.17,1631.5,1631.2,7.00233659]
[1744645423505,6.17,1631.5,1631.2,7.45426001]
[1744645423669,12.29933,1631.5,1631.2,7.45426001]
[1744645424703,6.17,1631.5,1631.2,7.45426001]
[1744645424906,6.12982,1631.4,1631.2,7.45426001]
[1744645425201,6.13045,1631.2,1631.1,0.05]
[1744645425411,12.30045,1631.2,1631.1,0.05]
[1744645425611,6.13158,1630.9,1630.8,47.761]
[1744645427719,6.12,1631.1,1630.2,0.46274229]
[1744645427921,6.13313,1630.5,1630.2,3.0]
[1744645428128,6.13313,1630.5,1630.1,11.58476659]
[1744645428129,6.13421,1630.2,1630.1,0.05]
[1744645428277,12.25421,1630.2,1630.1,0.05]
[1744645428615,6.12,1630.2,1630.1,0.05]
[1744645428799,6.12,1630.2,1630.1,0.11134385]
[1744645428976,6.12,1630.2,1630.1,0.05]
[1744645430851,6.12,1630.2,1630.1,6.18459]
[1744645430981,6.12,1630.2,1630.1,0.05]
[1744645431880,6.12,1630.2,1630.1,6.18459]
[1744645432091,6.12,1630.2,1630.1,15.82300663]
[1744645433079,6.12,1630.2,1630.1,30.16000663]
[1744645433484,6.12,1630.7,1630.6,6.13271]
[1744645433700,1.6657,1631.4,1630.6,4.68421865]
[1744645433930,6.13111,1631.1,1630.7,47.786]
[1744645434231,7.79544,1631.4,1630.9,6.1314]
[1744645434535,6.13031,1631.3,1630.8,25.86898659]
[1744645434743,12.26129,1631.2,1630.8,29.39422528]
[1744645434903,6.1306,1631.2,1630.8,29.39422528]
[1744645435103,1.6657,1631.4,1631.1,6.13051]
[1744645435302,6.44758784,1631.5,1631.1,6.13051]
[1744645435503,6.44758784,1631.5,1631.1,6.13078]
[1744645436245,0.31816784,1631.5,1631.2,6.19164293]
[1744645436444,0.31816784,1631.5,1631.3,6.13006]
[1744645436743,0.31816784,1631.5,1631.2,6.13033]
[1744645436948,13.81419,1631.7,1631.2,6.13031]
[1744645437154,0.31815456,1631.8,1631.6,6.12882]
[1744645437324,6.44653456,1631.8,1631.6,14.338]
[1744645437720,6.12788,1631.9,1631.6,14.338]
[1744645437953,6.12837,1631.8,1631.6,14.338]
[1744645438165,6.12761,1632.0,1631.6,14.338]
[1744645438307,0.31812959,1632.1,1631.7,6.89541171]
[1744645438658,0.31812959,1632.1,1631.8,6.12816]
[1744645438809,0.31812959,1632.1,1631.8,6.12803]
[1744645439149,13.86925,1632.4,1631.8,3.0]
[1744645439351,3.53963201,1632.5,1631.7,54.61913659]
[1744645439352,6.12568,1632.5,1632.0,6.12745]
[1744645439523,6.12568,1632.5,1631.8,17.337]
[1744645439524,6.12594,1632.4,1631.8,17.337]
[1744645439723,6.12724,1632.1,1631.8,14.337]
[1744645440021,6.1267,1632.2,1631.8,20.46516]
[1744645440228,12.25289,1632.3,1631.8,20.46501]
[1744645440438,6.12633,1632.3,1631.9,12.25558]
[1744645440638,6.12522,1632.6,1632.2,6.12666]
[1744645440847,13.91219,1632.7,1632.3,0.0612526]
[1744645441145,6.12573,1632.5,1632.2,0.45330225]
[1744645441348,6.12573,1632.5,1632.1,6.12693]
[1744645441549,6.12573,1632.5,1632.0,12.25474]
[1744645441845,6.12573,1632.5,1632.1,6.12704]
[1744645442049,6.12649,1632.3,1631.9,3.0]
[1744645442253,6.12677,1632.2,1631.9,3.0]
[1744645442428,6.12584,1632.5,1632.0,6.18857394]
[1744645442627,6.12597,1632.4,1631.9,9.12779]
[1744645442850,12.25223,1632.4,1631.9,15.2554]
[1744645443052,7.78718,1632.7,1632.0,6.12729]
[1744645443359,6.12618,1632.4,1632.0,12.2546]
[1744645443510,6.12618,1632.4,1632.0,12.25461]
[1744645443716,6.12564,1632.5,1632.1,6.12706]
[1744645443917,7.78724,1632.7,1632.3,6.1263]
[1744645444217,7.78716,1632.7,1632.4,13.979]
[1744645444552,9.66507201,1632.6,1632.4,13.979]
[1744645444757,6.12557,1632.5,1632.4,13.979]
[1744645446033,9.66499201,1632.6,1632.4,13.979]
[1744645446034,3.53963201,1632.6,1632.4,13.979]
[1744645446552,9.66485201,1632.6,1632.4,13.979]
[1744645446948,3.53963201,1632.6,1632.4,13.979]
[1744645447328,9.66488201,1632.6,1632.4,13.979]
[1744645447529,3.53963201,1632.6,1632.4,13.979]
[1744645448157,9.66499201,1632.6,1632.4,13.979]
[1744645448364,6.12557,1632.5,1632.4,13.979]
[1744645448661,9.66520201,1632.5,1632.4,13.979]
[1744645450549,6.12685,1632.2,1631.9,13.555]
[1744645450774,15.79353201,1632.2,1631.9,13.555]
[1744645451068,3.53963201,1632.2,1631.9,13.555]
[1744645451234,3.53963201,1632.2,1632.0,6.12715]
[1744645451430,3.53963201,1632.2,1632.0,6.12744]
[1744645451630,3.53963201,1632.2,1632.1,6.12707]
[1744645452073,3.53963201,1632.2,1632.0,6.12727]
[1744645452243,3.53963201,1632.2,1632.1,6.12707]
[1744645452444,3.53963201,1632.6,1632.5,6.12557]
[1744645452684,3.53963201,1632.6,1632.5,19.68057]
[1744645452989,3.53963201,1633.0,1632.8,6.12413]
[1744645453345,3.53963201,1633.0,1632.8,0.46280082]
[1744645453539,3.53963201,1633.0,1632.8,6.12422]
[1744645453976,3.53963201,1633.0,1632.9,6.12407]
[1744645454171,9.66337201,1633.0,1632.7,6.12476]
[1744645454392,3.53963201,1633.0,1632.6,47.755]
[1744645454672,3.53963201,1633.0,1632.8,6.12441]
[1744645455077,3.53963201,1633.0,1632.6,48.21421927]
[1744645455241,6.12425,1632.9,1632.6,54.33938927]
[1744645455761,3.53963201,1633.0,1632.7,6.1246]
[1744645456139,3.53963201,1633.0,1632.6,48.21421927]
[1744645456140,3.53963201,1633.0,1632.8,6.12441]
[1744645456336,3.53963201,1633.0,1632.9,6.18530557]
[1744645456581,3.53963201,1633.0,1632.9,16.05990659]
[1744645456778,3.58963201,1633.4,1633.3,6.12257]
[1744645456942,3.58963201,1633.4,1633.3,19.37878908]
[1744645457147,3.58963201,1633.4,1633.3,19.31757]
[1744645457492,0.05,1633.4,1633.3,25.24301373]
[1744645457689,3.53963201,1633.9,1633.7,6.12089]
[1744645457849,3.53963201,1633.9,1633.8,6.18189945]
[1744645458058,3.53963201,1633.9,1633.7,12.24178]
[1744645458393,3.53963201,1633.9,1633.7,6.12089]
[1744645458759,3.53963201,1633.9,1633.6,53.14833659]
[1744645458955,8.1718656,1634.3,1633.9,6.12023]
[1744645459176,6.5158856,1634.3,1634.0,0.06119404]
[1744645459350,6.11931,1634.2,1633.9,19.31225]
[1744645459549,6.11962,1634.1,1633.9,13.192]
[1744645459776,6.11931,1634.2,1633.9,13.192]
[1744645460053,6.5156056,1634.3,1633.9,19.31215]
[1744645460262,6.11939,1634.2,1633.9,13.192]
[1744645460758,0.3967256,1634.3,1633.9,13.192]
[1744645461086,6.5157656,1634.3,1633.9,19.31216]
[1744645461289,9.15375197,1634.2,1633.9,19.31216]
[1744645461678,9.15375197,1634.2,1633.9,13.192]
[1744645461867,3.03442197,1634.2,1633.9,19.31216]
[1744645462278,3.03442197,1634.2,1634.0,6.18097064]
[1744645462499,3.03442197,1634.2,1633.9,26.64384259]
[1744645462500,3.03442197,1634.2,1633.9,26.64383259]
[1744645462648,3.05674828,1634.1,1633.9,13.192]
[1744645462854,3.05674828,1634.1,1633.9,19.31223]
[1744645463075,3.03442197,1634.2,1633.9,19.31223]
[1744645463276,3.03442197,1634.2,1634.0,6.11961]
[1744645463997,3.03442197,1634.2,1633.9,24.71247659]
[1744645464201,3.03442197,1634.2,1633.9,18.59233659]
[1744645464404,6.59638029,1634.1,1634.0,13.86962]
[1744645464701,3.53963201,1634.1,1634.0,16.86962]
[1744645464907,3.53963201,1634.1,1634.0,20.40750473]
[1744645465108,1.96240277,1634.1,1634.0,20.40750473]
[1744645465459,1.96240277,1634.1,1633.9,18.59233659]
[1744645465460,1.96240277,1634.1,1633.9,6.12022]
[1744645465669,1.96240277,1634.1,1634.0,12.852]
[1744645465988,3.03442197,1634.2,1634.0,18.97195]
[1744645466187,3.03442197,1634.2,1634.1,11.51990659]
[1744645466607,3.03442197,1634.2,1634.1,5.40033659]
[1744645466807,3.03442197,1634.2,1634.0,18.97179]
[1744645467104,3.03442197,1634.2,1634.0,12.852]
[1744645467310,3.03442197,1634.2,1634.0,18.97177]
[1744645467466,3.03442197,1634.2,1634.0,12.852]
[1744645467901,3.49336224,1634.1,1634.0,25.09154]
[1744645468095,3.49336224,1634.1,1634.0,18.97175]
[1744645468308,3.49336224,1634.1,1634.0,12.852]
[1744645468713,3.49336224,1634.1,1634.0,18.97195]
[1744645469067,2.24e-06,1634.1,1634.0,25.32119766]
[1744645469410,1.96240277,1634.6,1634.5,6.11807]
[1744645469616,1.96240277,1634.6,1634.3,12.23745]
[1744645469913,1.96240277,1634.6,1634.3,12.23729]
[1744645470071,1.96240277,1634.6,1634.3,6.11863]
[1744645470495,1.96240277,1634.6,1634.3,3.0]
[1744645470704,1.96240277,1634.6,1634.5,6.11807]
[1744645470922,1.96240277,1634.6,1634.4,5.40033659]
[1744645471201,1.96240277,1634.6,1634.4,5.84853718]
[1744645471365,8.08029277,1634.6,1634.4,5.84853718]
[1744645471563,1.96240277,1634.6,1634.4,5.84853718]
[1744645471769,1.96240277,1634.6,1634.4,11.96678718]
[1744645471998,1.96240277,1634.6,1634.5,6.11807]
[1744645472413,0.2404198,1634.6,1634.5,9.1792402]
[1744645472629,0.02251208,1634.6,1634.5,9.11807]
[1744645472996,0.02251208,1634.6,1634.5,10.64487]
[1744645473215,0.02251208,1635.1,1634.9,6.11637]
[1744645473527,0.02251208,1635.1,1634.6,12.501]
[1744645473528,6.11671,1634.9,1634.6,12.501]
[1744645473724,1.5644,1634.9,1634.6,18.61859]
[1744645474032,6.13839208,1635.1,1634.7,6.11728]
[1744645474187,0.02251208,1635.1,1634.8,6.11661]
[1744645474384,0.02251208,1635.1,1634.9,0.0611584]
[1744645474585,0.05,1635.4,1634.9,11.57790499]
[1744645474893,0.05,1635.4,1635.3,6.11508]
[1744645475114,0.05,1635.4,1635.3,18.61608]
[1744645475976,0.05,1635.4,1635.3,12.501]
[1744645476322,3.48112003,1635.6,1635.4,3.0]
[1744645476629,0.65900062,1635.6,1635.5,6.1142]
[1744645477399,0.3967256,1635.9,1635.8,9.11321]
[1744645477599,0.05,1636.4,1636.1,12.22392]
[1744645477919,0.12011296,1636.3,1636.2,12.498]
[1744645478119,6.54937372,1636.3,1636.2,12.498]
[1744645478327,6.42926076,1636.3,1636.2,12.498]
[1744645478512,6.54937372,1636.3,1636.2,12.95280648]
[1744645478711,7.82042209,1636.3,1636.2,12.498]
[1744645478886,9.14810133,1636.3,1636.2,12.498]
[1744645479524,9.14810133,1636.3,1636.2,12.15625781]
[1744645479738,6.11345,1635.8,1635.7,0.46594067]
[1744645479927,6.11226,1636.1,1635.7,6.11356]
[1744645480099,0.11863181,1635.8,1635.6,24.72151]
[1744645480301,6.11217,1636.1,1635.6,12.494]
[1744645480623,6.11249,1636.0,1635.6,12.494]
[1744645480825,6.11249,1636.0,1635.6,16.86757757]
[1744645481053,6.11249,1636.0,1635.6,16.86739757]
[1744645481211,12.22447,1636.1,1635.7,6.11346]
[1744645481540,0.05,1636.4,1636.0,6.11231]
[1744645481717,0.05,1636.4,1636.1,0.06111195]
[1744645481915,0.05,1636.4,1636.2,12.494]
[1744645482116,0.05,1636.4,1636.2,18.60559]
[1744645482415,0.05,1636.4,1636.2,18.60558]
[1744645482634,0.05,1636.4,1636.2,18.60554]
[1744645482838,0.05,1636.4,1636.2,24.00587659]
[1744645483035,0.05,1636.4,1636.2,12.494]
[1744645483244,6.1613,1636.4,1636.2,12.94427032]
[1744645483459,6.11134,1636.3,1636.2,0.45027032]
[1744645483609,6.11134,1636.3,1636.2,12.60827032]
[1744645483956,6.11134,1636.3,1636.2,12.158]
[1744645484143,7.138587,1636.3,1636.2,12.158]
[1744645485321,5.91134,1636.3,1636.2,12.158]
[1744645485522,6.11134,1636.3,1636.2,12.158]
[1744645486061,6.11221,1636.1,1635.7,6.56907123]
[1744645486263,6.873991,1636.1,1635.6,12.156]
[1744645486423,6.11276,1636.0,1635.6,12.62158134]
[1744645486619,7.61767,1636.2,1635.8,6.11303]
[1744645486814,1.5059,1636.2,1635.9,6.11272]
[1744645487163,0.05,1636.4,1636.1,6.11175]
[1744645487317,0.05,1636.4,1636.3,6.11134]
[1744645487715,0.05,1636.4,1636.2,18.26754]
[1744645488021,0.05,1636.4,1636.3,6.11134]
[1744645489977,0.05,1636.4,1636.2,65.91454]
[1744645490184,0.05,1636.4,1636.3,6.11134]
[1744645490395,0.05,1636.4,1636.2,65.91454]
[1744645490949,0.05,1636.4,1636.2,59.803]
[1744645491377,0.05,1636.4,1636.2,65.91461]
[1744645491669,0.05,1636.4,1636.2,59.803]
[1744645491670,12.2723,1636.4,1636.2,59.803]
[1744645491851,1.27723,1636.4,1636.2,59.803]
[1744645492046,0.14001784,1636.3,1636.2,59.803]
[1744645492268,0.14001784,1636.3,1636.2,66.38253411]
[1744645492588,0.05,1636.4,1636.2,66.38240411]
[1744645492783,0.05,1636.4,1636.2,60.27081411]
[1744645492993,0.16350689,1636.3,1636.2,60.27081411]
[1744645493185,0.05,1636.4,1636.2,60.27081411]
[1744645493587,6.27456521,1636.3,1636.2,12.156]
[1744645493785,7.82316521,1636.3,1636.2,12.156]
[1744645494289,1.71182521,1636.3,1636.2,12.156]
[1744645494495,7.82316521,1636.3,1636.2,12.156]
[1744645496160,7.82316521,1636.3,1635.7,11.815]
[1744645496161,6.11302,1635.9,1635.7,11.815]
[1744645496491,0.15937725,1635.8,1635.7,12.27292298]
[1744645496793,6.11321,1635.8,1635.7,12.27292298]
[1744645496994,7.73861,1635.8,1635.7,11.815]
[1744645497195,9.28315025,1635.8,1635.7,11.815]
[1744645497490,6.11421,1635.6,1635.1,24.04742]
[1744645497697,1.78477725,1635.8,1635.2,0.0611472]
[1744645497850,0.3407242,1636.0,1635.5,12.22811]
[1744645497851,12.24795208,1636.0,1635.5,12.22811]
[1744645498192,0.02251208,1636.0,1635.7,12.22701]
[1744645498355,0.02251208,1636.0,1635.7,11.816]
[1744645498544,12.22604,1635.9,1635.7,11.816]
[1744645498752,6.11294,1635.9,1635.7,11.816]
[1744645499186,12.22595,1635.9,1635.7,11.816]
[1744645499390,12.22601,1635.9,1635.7,11.816]
[1744645499554,12.226,1635.9,1635.7,11.816]
[1744645499888,6.11321,1635.8,1635.7,11.816]
[1744645500387,6.11294,1635.9,1635.7,11.816]
[1744645500588,6.11321,1635.8,1635.7,11.816]
[1744645500798,6.11458,1635.5,1635.2,11.816]
[1744645500947,7.73899,1635.7,1635.2,11.816]
[1744645501288,0.05,1636.4,1636.3,6.11134]
[1744645501650,0.05,1636.4,1636.1,6.11198]
[1744645501845,0.05,1636.4,1636.3,6.11134]
[1744645502250,0.05,1636.4,1636.2,6.11155]
[1744645502464,0.05,1636.4,1636.1,6.56478098]
[1744645502864,0.05,1636.4,1636.1,6.56473098]
[1744645503064,6.16118,1636.4,1636.0,12.22456]
[1744645503368,0.05,1636.4,1636.1,6.11209]
[1744645503604,0.05,1636.4,1636.1,12.68676949]
[1744645503868,0.05,1636.4,1636.1,6.57467949]
[1744645504296,0.05,1636.4,1636.1,6.57478949]
[1744645504494,0.02251208,1636.3,1636.2,6.11169]
[1744645504810,6.13387208,1636.3,1636.1,0.46270949]
[1744645504964,6.13387208,1636.3,1636.0,9.11233]
[1744645504965,0.02251208,1636.3,1636.0,9.11233]
[1744645505297,0.02251208,1636.3,1636.0,3.0]
[1744645505509,1.5826,1636.4,1635.9,47.641]
[1744645505510,6.11212,1636.1,1635.9,47.641]
[1744645505659,6.11212,1636.1,1635.3,13.02675659]
[1744645505660,6.11333,1635.8,1635.3,13.02675659]
[1744645505862,6.11425,1635.6,1635.3,0.45290263]
[1744645506063,0.57251208,1635.8,1635.2,11.491]
[1744645506286,6.11508,1635.3,1635.2,11.491]
[1744645506489,6.11508,1635.3,1634.9,47.638]
[1744645506490,6.11611,1635.1,1634.9,47.638]
[1744645506706,0.611508,1635.3,1635.0,6.11601]
[1744645507003,6.11515,1635.3,1634.9,47.638]
[1744645507166,1.648,1635.4,1634.9,47.638]
[1744645507371,6.1162,1635.0,1634.9,47.638]
[1744645507603,6.11667,1634.9,1634.6,11.491]
[1744645507912,6.11714,1634.8,1634.6,11.491]
[1744645508113,1.6459,1634.9,1634.6,11.491]
[1744645508312,1.6459,1634.9,1634.8,6.11695]
[1744645508607,1.599,1635.7,1634.9,3.0]